bitfinex/quotes_ETHUSD_20251124
["timestamp","ask_amount","ask_price","bid_price","bid_amount"]
[1763999523039,0.226,2854.7,2854.1,0.1717]
[1763999523335,0.6899,2854.7,2854.1,0.1717]
[1763999523541,0.326,2855.4,2854.6,0.4983]
[1763999523701,0.226,2855.2,2854.8,0.4973]
[1763999524019,0.226,2855.1,2854.8,0.4973]
[1763999524237,0.6542,2854.9,2854.6,0.001]
[1763999524401,0.3207,2854.7,2854.6,0.001]
[1763999524606,0.1,2854.8,2854.6,0.001]
[1763999524839,0.226,2854.7,2854.6,0.001]
[1763999525016,0.4955,2855.4,2854.6,0.001]
[1763999525218,0.226,2855.3,2854.6,0.4983]
[1763999525539,0.226,2855.2,2854.7,0.4847]
[1763999525739,0.226,2855.2,2854.6,0.001]
[1763999526124,0.4955,2855.5,2854.6,0.001]
[1763999526125,0.4955,2855.5,2854.6,0.4857]
[1763999526439,0.226,2855.4,2854.6,0.4857]
[1763999526838,0.1,2855.3,2854.6,0.001]
[1763999527041,0.1,2855.3,2854.8,0.001]
[1763999527233,0.1,2855.6,2854.8,0.001]
[1763999527537,0.226,2855.2,2854.8,0.001]
[1763999527939,0.7215,2855.2,2854.8,0.001]
[1763999528145,0.226,2855.2,2854.8,0.001]
[1763999529339,0.8215,2855.2,2854.8,0.001]
[1763999529544,0.1,2855.1,2854.8,0.001]
[1763999529741,0.5955,2855.1,2854.8,0.001]
[1763999530036,0.1,2855.1,2854.8,0.001]
[1763999530220,0.326,2855.2,2854.8,0.001]
[1763999530948,0.6542,2854.9,2854.8,0.001]
[1763999531109,1.96411208,2854.9,2854.8,0.001]
[1763999531309,2.45961208,2854.9,2854.8,0.001]
[1763999531506,1.03040808,2854.9,2854.8,0.001]
[1763999531737,0.8802,2854.9,2854.8,0.001]
[1763999532049,1.3757,2854.9,2854.8,0.001]
[1763999532607,1.881204,2854.9,2854.8,0.001]
[1763999533752,1.285704,2854.9,2854.8,0.001]
[1763999533926,1.881204,2854.9,2854.8,0.001]
[1763999534244,3.5659156,2854.9,2854.8,0.001]
[1763999534648,3.89196001,2854.9,2854.8,0.001]
[1763999535409,0.505504,2854.7,2854.6,0.001]
[1763999535614,8.86221935,2854.7,2854.6,0.001]
[1763999535910,3.54638759,2854.7,2854.6,0.001]
[1763999536109,1.35709811,2854.7,2854.6,0.001]
[1763999536347,2.41649811,2854.7,2854.6,0.001]
[1763999536555,2.11108718,2854.7,2854.6,0.001]
[1763999536755,2.41649811,2854.7,2854.6,0.001]
[1763999537332,2.41569811,2854.7,2854.6,0.001]
[1763999537654,3.00249828,2854.7,2854.6,0.001]
[1763999539668,0.505504,2854.3,2854.2,0.001]
[1763999539883,0.88690036,2854.3,2854.2,0.001]
[1763999540166,1.61010036,2854.3,2854.2,0.001]
[1763999540364,2.01558806,2854.3,2854.2,0.001]
[1763999540527,2.21714687,2854.3,2854.2,0.001]
[1763999541955,1.99114687,2854.3,2854.2,0.001]
[1763999542132,1.71994687,2854.3,2854.2,0.001]
[1763999542333,1.89096281,2854.3,2854.2,0.001]
[1763999543867,1.39376281,2854.3,2854.2,0.001]
[1763999544084,0.66225881,2854.3,2854.2,0.001]
[1763999544281,0.226,2854.3,2854.2,0.001]
[1763999544578,0.7975,2854.3,2854.2,0.001]
[1763999544730,1.2947,2854.3,2854.2,0.001]
[1763999545265,0.002,2854.5,2854.2,0.9654]
[1763999545433,0.226,2854.4,2854.2,0.9654]
[1763999545634,0.226,2854.4,2854.2,0.001]
[1763999545833,0.226,2854.4,2854.3,0.4659]
[1763999546047,0.226,2854.4,2854.3,0.9644]
[1763999546243,0.002,2854.5,2854.3,0.9644]
[1763999546443,0.002,2854.5,2854.4,0.9644]
[1763999547004,0.1,2854.4,2854.2,0.001]
[1763999547300,0.810504,2854.3,2854.2,0.001]
[1763999547468,0.2504404,2854.3,2854.2,0.001]
[1763999547668,0.5715,2854.3,2854.2,0.001]
[1763999547863,1.474204,2854.3,2854.2,0.001]
[1763999548161,2.52699014,2854.3,2854.2,0.001]
[1763999549403,2.02739603,2854.3,2854.2,0.001]
[1763999549574,1.80139603,2854.3,2854.2,0.001]
[1763999549898,2.20773563,2854.3,2854.2,0.001]
[1763999551069,2.93332974,2854.3,2854.2,0.001]
[1763999551863,9.91770657,2854.3,2854.2,0.001]
[1763999552268,10.44623073,2854.3,2854.2,0.001]
[1763999552491,10.67223073,2854.3,2854.2,0.001]
[1763999553272,17.86936373,2854.3,2854.2,0.001]
[1763999553665,16.77561773,2854.3,2854.2,0.001]
[1763999554067,16.26485073,2854.3,2854.2,0.001]
[1763999554277,10.67223073,2854.3,2854.2,0.001]
[1763999554477,12.80023973,2854.3,2854.2,0.001]
[1763999554706,3.2823499,2854.3,2854.2,0.001]
[1763999555601,3.6878539,2854.3,2854.2,0.001]
[1763999556318,2.70732974,2854.3,2854.2,0.001]
[1763999556481,2.93332974,2854.3,2854.2,0.001]
[1763999558102,3.68796301,2854.3,2854.2,0.001]
[1763999558404,1.13109811,2854.2,2854.1,0.001]
[1763999558605,7.53072041,2854.2,2854.1,0.001]
[1763999559109,1.8931293,2854.2,2854.1,0.001]
[1763999559281,2.1191293,2854.2,2854.1,0.001]
[1763999559603,2.61676412,2854.2,2854.1,0.001]
[1763999559898,3.34235823,2854.2,2854.1,0.001]
[1763999560098,4.37503174,2854.2,2854.1,0.001]
[1763999561408,3.87703174,2854.2,2854.1,0.001]
[1763999561833,2.39636954,2854.2,2854.1,0.001]
[1763999562455,2.17036954,2854.2,2854.1,0.001]
[1763999562664,2.17036954,2854.2,2854.0,0.1015742]
[1763999562665,12.70949014,2854.2,2854.0,0.1015742]
[1763999562932,13.76793933,2854.1,2854.0,0.1025742]
[1763999563315,9.64379511,2854.0,2853.9,0.001]
[1763999563515,6.9260665,2854.0,2853.9,0.001]
[1763999563818,9.4296665,2854.0,2853.9,0.001]
[1763999564002,6.9260665,2854.0,2853.9,0.001]
[1763999564918,6.7000665,2854.0,2853.9,0.001]
[1763999565110,3.2430665,2854.0,2853.9,0.001]
[1763999565942,2.5399665,2854.0,2853.9,0.001]
[1763999566232,0.55319203,2854.0,2853.9,0.4669]
[1763999567627,0.55319203,2854.0,2853.9,0.9643]
[1763999568323,0.55319203,2854.0,2853.5,0.001]
[1763999568324,0.712,2854.0,2853.5,0.001]
[1763999568525,1.1054,2853.1,2850.9,0.35589697]
[1763999568727,0.405504,2850.8,2850.1,0.1892]
[1763999568948,0.32855125,2850.7,2850.1,0.1892]
[1763999569146,0.32855125,2850.7,2849.1,4.92425967]
[1763999569147,3.13046457,2850.3,2849.1,4.92425967]
[1763999569363,1.88553855,2850.0,2849.8,0.1892]
[1763999569561,2.01419943,2849.9,2849.8,0.1892]
[1763999569711,0.75723023,2849.9,2849.8,0.1892]
[1763999570021,0.23,2850.7,2850.2,0.1943]
[1763999570524,0.72559411,2851.4,2850.2,0.1943]
[1763999570724,0.405504,2851.8,2851.3,0.1943]
[1763999570725,2.51428511,2851.6,2851.3,0.1943]
[1763999570913,0.72559411,2851.6,2851.3,0.1943]
[1763999571243,0.72559411,2851.8,2851.4,0.4781]
[1763999571430,0.23,2851.5,2851.4,0.4781]
[1763999572440,0.1832,2851.9,2851.4,0.4781]
[1763999572647,0.23,2851.8,2851.4,0.9569]
[1763999573145,0.1832,2851.9,2851.3,0.1943]
[1763999573146,0.505504,2851.7,2851.3,0.1943]
[1763999573314,0.72559411,2851.5,2851.2,0.1943]
[1763999573643,0.1,2851.4,2851.2,0.1943]
[1763999573947,0.1,2851.4,2851.2,0.6724]
[1763999574815,0.1,2851.4,2851.2,0.1943]
[1763999575167,0.1,2851.1,2850.5,0.4781]
[1763999575362,0.635504,2851.0,2850.5,0.4781]
[1763999575565,0.735504,2851.0,2850.5,0.4781]
[1763999575728,0.635504,2851.0,2850.5,0.4781]
[1763999575915,0.635504,2851.0,2850.2,0.1943]
[1763999576116,0.1,2850.9,2850.2,0.6724]
[1763999576637,0.1,2850.9,2850.3,0.4781]
[1763999576848,0.1,2850.9,2850.8,0.4788]
[1763999577023,0.23,2850.9,2850.8,0.4788]
[1763999577514,0.23,2850.9,2850.3,0.4781]
[1763999578215,0.1,2850.8,2850.3,0.4781]
[1763999578415,0.23,2850.9,2850.3,0.4781]
[1763999578710,0.405504,2850.8,2850.2,0.1943]
[1763999578911,0.1,2850.4,2849.8,0.6673]
[1763999579222,0.23,2850.3,2849.8,0.6673]
[1763999579550,0.23,2850.3,2849.9,0.4781]
[1763999579847,0.405504,2850.6,2850.3,0.001]
[1763999580363,2.51428511,2851.1,2850.5,0.4788]
[1763999580527,0.002,2851.8,2851.0,0.4788]
[1763999580727,0.002,2851.8,2850.3,0.4791]
[1763999580728,0.002,2851.8,2851.7,0.1943]
[1763999580925,0.232,2851.8,2851.7,1.1512]
[1763999581547,0.232,2851.8,2851.7,0.6731]
[1763999581817,0.232,2851.8,2851.7,0.4788]
[1763999582053,0.980921,2851.8,2851.7,0.4788]
[1763999582360,0.980921,2851.8,2851.6,0.1943]
[1763999582543,0.748921,2851.7,2851.4,0.4781]
[1763999582851,0.978921,2851.6,2851.4,0.4781]
[1763999583151,0.748921,2851.5,2851.4,0.4781]
[1763999583451,0.978921,2851.5,2851.4,0.4781]
[1763999583634,0.978921,2851.5,2851.4,0.9569]
[1763999584517,0.748921,2851.5,2851.4,0.9569]
[1763999584959,0.23,2851.6,2851.4,0.9569]
[1763999585146,0.23,2851.6,2851.5,0.9569]
[1763999585650,0.002,2851.8,2851.5,0.9569]
[1763999585850,0.002,2851.8,2851.7,0.4788]
[1763999586262,0.002,2851.8,2851.7,0.9569]
[1763999588134,0.002,2852.1,2851.7,0.9569]
[1763999588335,0.002,2852.1,2851.3,0.1943]
[1763999588336,0.002,2852.1,2852.0,0.4788]
[1763999588546,0.002,2852.4,2852.0,0.4788]
[1763999588756,0.002,2852.4,2852.3,0.6731]
[1763999589258,0.002,2852.4,2852.3,1.1512]
[1763999590019,0.2834,2852.4,2851.6,0.4781]
[1763999590225,0.857804,2852.3,2851.3,0.1943]
[1763999590468,0.1,2852.1,2851.3,0.1943]
[1763999591059,0.19667981,2852.2,2851.4,0.4781]
[1763999591276,0.229,2852.1,2851.4,0.4781]
[1763999591803,0.229,2852.1,2852.0,0.4788]
[1763999592492,0.229,2852.1,2851.7,0.4781]
[1763999592865,0.229,2852.1,2851.3,0.1943]
[1763999593064,0.229,2852.1,2851.3,0.6724]
[1763999593366,0.1,2852.0,2851.3,0.1943]
[1763999593783,0.39289479,2852.0,2851.3,0.1943]
[1763999593956,1.87435382,2852.3,2851.9,0.4788]
[1763999594280,0.229,2852.3,2851.9,0.9569]
[1763999594594,0.229,2852.3,2851.9,0.4788]
[1763999594890,0.229,2852.3,2852.0,0.4781]
[1763999595294,0.229,2852.3,2852.1,0.1943]
[1763999595515,0.229,2852.3,2851.6,0.4781]
[1763999595688,0.99353538,2852.3,2851.3,0.1943]
[1763999595891,0.99353538,2852.3,2851.3,0.6724]
[1763999596184,0.53953538,2852.3,2851.3,0.6724]
[1763999596391,0.53953538,2852.3,2851.4,0.4781]
[1763999596581,0.24158892,2852.2,2851.4,0.4781]
[1763999596981,0.75219096,2852.1,2851.4,0.4781]
[1763999597181,0.75219096,2852.0,2851.4,0.4781]
[1763999597386,0.75219096,2851.9,2851.4,0.4781]
[1763999597697,0.75219096,2851.8,2851.5,0.001]
[1763999597898,0.98119096,2851.7,2851.5,0.001]
[1763999598085,0.75219096,2851.6,2851.5,0.001]
[1763999598681,0.75219096,2851.6,2851.5,0.9579]
[1763999599580,0.75219096,2851.6,2851.5,0.9534]
[1763999599813,0.75219096,2851.6,2851.5,0.9259]
[1763999601699,0.229,2852.1,2851.5,0.9259]
[1763999602019,0.229,2852.1,2852.0,0.4513]
[1763999602185,0.98318734,2852.1,2852.0,0.4513]
[1763999602814,0.98318734,2852.1,2851.6,0.4736]
[1763999602981,0.98318734,2852.0,2851.6,0.4736]
[1763999603189,0.75418734,2851.9,2851.6,0.4736]
[1763999603419,0.75418734,2851.8,2851.6,0.4736]
[1763999603587,0.75418734,2851.7,2851.6,0.4736]
[1763999603912,0.75418734,2851.7,2851.5,0.001]
[1763999604113,0.229,2852.0,2851.6,0.4513]
[1763999604414,0.98316678,2851.9,2851.6,0.4736]
[1763999604581,0.75416678,2851.8,2851.6,0.4736]
[1763999604781,0.75416678,2851.7,2851.6,0.4736]
[1763999605002,0.75416678,2851.7,2851.5,0.001]
[1763999605215,0.75437627,2851.6,2851.5,0.001]
[1763999605922,0.75437049,2851.6,2851.5,0.001]
[1763999606119,0.75437049,2851.6,2851.5,0.4523]
[1763999606486,1.25693029,2852.2,2851.5,0.9259]
[1763999606686,0.98363284,2852.1,2851.7,0.4513]
[1763999606904,0.75463284,2852.0,2851.7,0.4513]
[1763999607229,0.75463284,2851.9,2851.7,0.4513]
[1763999607398,0.75463284,2851.8,2851.7,0.4513]
[1763999607588,0.75463284,2851.8,2851.7,0.9249]
[1763999608483,0.75383284,2851.8,2851.7,0.9249]
[1763999608686,0.002,2852.3,2851.7,0.9249]
[1763999608885,0.002,2852.3,2852.2,0.6405]
[1763999609087,0.002,2852.3,2852.2,1.1141]
[1763999609894,0.186,2852.9,2852.8,0.4513]
[1763999610419,0.186,2852.9,2852.8,0.9249]
[1763999610635,0.186,2852.9,2852.8,0.4513]
[1763999610812,0.228,2853.0,2852.8,0.4513]
[1763999611291,0.228,2853.0,2851.7,0.4736]
[1763999611292,0.405504,2852.8,2851.7,0.4736]
[1763999611492,0.0045,2852.5,2851.7,0.4736]
[1763999611797,0.228,2852.4,2851.7,0.4736]
[1763999612212,0.19978675,2852.5,2851.7,0.4736]
[1763999612403,0.228,2852.4,2851.7,0.4736]
[1763999612740,0.19978675,2852.5,2851.7,0.4736]
[1763999612886,0.228,2852.4,2851.5,0.001]
[1763999613091,0.228,2852.4,2851.5,0.4746]
[1763999613290,0.2015671,2852.3,2851.5,0.4746]
[1763999614188,0.6532671,2852.3,2851.5,0.001]
[1763999614395,0.7532671,2852.3,2851.5,0.001]
[1763999615029,0.405504,2852.2,2851.5,0.001]
[1763999615330,0.32829431,2852.1,2851.5,0.001]
[1763999615538,0.19935378,2852.0,2851.5,0.001]
[1763999615714,0.228,2851.9,2851.5,0.001]
[1763999616114,0.228,2851.9,2851.5,0.4746]
[1763999616503,0.228,2851.9,2851.5,0.001]
[1763999617302,0.32829693,2852.1,2851.5,0.001]
[1763999617531,0.42735405,2852.0,2851.5,0.001]
[1763999617935,0.1417,2851.9,2851.5,0.001]
[1763999618323,0.4517,2851.8,2851.5,0.001]
[1763999618516,0.1417,2851.9,2851.5,0.001]
[1763999618837,0.4517,2851.8,2851.5,0.001]
[1763999619042,0.2838,2851.6,2851.5,0.001]
[1763999619229,9.3085695,2851.6,2851.5,0.001]
[1763999619416,2.71905854,2851.6,2851.5,0.001]
[1763999619616,3.68175543,2851.6,2851.5,0.001]
[1763999619942,2.52120159,2851.6,2851.5,0.001]
[1763999620643,3.27725216,2851.6,2851.5,0.001]
[1763999621345,3.27725216,2851.6,2851.2,0.001]
[1763999621346,0.1,2850.2,2849.3,0.001]
[1763999621643,0.1,2850.2,2849.3,0.4746]
[1763999621644,1.39245457,2850.1,2849.3,0.4746]
[1763999621866,2.02623038,2850.1,2849.3,0.4746]
[1763999622229,2.35432495,2850.1,2849.3,0.001]
[1763999622440,0.72559411,2849.9,2849.3,0.001]
[1763999622652,8.70086602,2849.4,2849.3,0.001]
[1763999622850,0.405504,2849.1,2848.6,0.001]
[1763999623054,0.405504,2849.1,2848.2,0.10364872]
[1763999623055,8.62207191,2848.7,2848.2,0.10364872]
[1763999623255,6.08959111,2848.3,2848.2,0.10364872]
[1763999623568,3.30944836,2848.3,2848.2,0.10364872]
[1763999623870,5.01976799,2848.3,2848.2,0.10364872]
[1763999624220,5.01976799,2848.3,2846.5,0.4736]
[1763999624221,0.72559411,2848.2,2846.5,0.4736]
[1763999624429,0.405504,2847.4,2846.5,0.4736]
[1763999624629,0.75605057,2847.7,2846.0,0.1892]
[1763999624932,0.405504,2847.2,2846.3,0.4736]
[1763999625149,0.229,2847.1,2846.3,0.4736]
[1763999625598,0.229,2847.1,2846.1,0.4736]
[1763999625861,0.229,2847.0,2846.1,0.4736]
[1763999626238,0.229,2847.0,2846.0,0.1892]
[1763999626239,0.2417,2846.9,2846.0,0.1892]
[1763999626440,0.229,2846.8,2846.1,0.4736]
[1763999626737,0.229,2846.7,2846.1,0.4736]
[1763999627769,0.229,2846.8,2846.6,0.4607]
[1763999628099,0.1944,2847.5,2846.6,0.4607]
[1763999628298,0.4623,2848.6,2847.4,0.1981]
[1763999628440,0.229,2848.5,2847.5,0.4695]
[1763999629455,0.1904,2848.7,2847.5,0.4695]
[1763999629659,0.229,2848.6,2847.5,0.4695]
[1763999629853,0.1855,2849.1,2847.5,0.4695]
[1763999630069,0.8012,2849.0,2847.5,0.4695]
[1763999631260,0.329,2849.0,2847.5,0.4695]
[1763999631464,0.1,2848.7,2847.5,0.4695]
[1763999631773,0.229,2849.0,2847.5,0.4695]
[1763999631949,0.1855,2849.1,2847.5,0.4695]
[1763999632268,0.1847,2849.1,2847.5,0.4695]
[1763999632470,0.229,2849.0,2847.5,1.19509411]
[1763999632659,0.229,2848.9,2847.6,0.98161335]
[1763999632860,9.90419115,2850.1,2847.7,0.405504]
[1763999633059,0.1,2849.6,2848.8,0.1808]
[1763999633278,0.1,2849.6,2847.7,0.896604]
[1763999633478,0.4722,2849.7,2847.9,0.405504]
[1763999633656,0.1,2849.9,2847.9,0.405504]
[1763999633859,0.229,2849.6,2848.1,0.405504]
[1763999634184,0.229,2849.5,2848.1,0.405504]
[1763999634384,0.7666,2850.0,2848.2,0.6719]
[1763999634551,0.229,2849.9,2848.3,0.405504]
[1763999634881,0.229,2849.9,2848.3,0.896604]
[1763999635284,0.229,2849.9,2848.5,0.405504]
[1763999635448,0.1,2849.8,2848.4,0.4911]
[1763999635647,0.1,2849.5,2848.4,0.4911]
[1763999636783,0.4722,2849.7,2848.4,0.4911]
[1763999636956,0.229,2849.6,2848.4,0.4911]
[1763999637162,0.1944,2850.0,2848.4,0.4911]
[1763999637345,0.329,2849.9,2848.4,0.4911]
[1763999637759,1.07252009,2849.9,2848.4,0.4911]
[1763999638049,1.31572009,2849.9,2848.4,0.4911]
[1763999638249,0.229,2849.8,2848.4,0.4911]
[1763999638486,0.329,2849.8,2848.4,0.4911]
[1763999638688,0.72559411,2849.0,2848.1,0.1808]
[1763999638846,0.229,2848.9,2848.1,0.1808]
[1763999639184,0.229,2848.8,2848.1,0.1808]
[1763999639389,0.229,2848.8,2847.5,0.4921]
[1763999639680,0.1,2848.6,2847.5,0.4921]
[1763999640188,0.405504,2848.4,2847.5,0.001]
[1763999640370,0.1913,2847.6,2847.5,0.001]
[1763999640570,0.74476168,2848.0,2847.5,0.4921]
[1763999640797,0.229,2847.8,2847.5,0.4921]
[1763999641209,0.229,2847.8,2847.5,0.001]
[1763999641377,0.229,2848.1,2847.6,0.4911]
[1763999641576,1.47083544,2848.5,2847.6,0.4911]
[1763999641779,0.229,2848.4,2847.6,0.4911]
[1763999642004,0.1322,2848.7,2847.6,0.4911]
[1763999642205,0.229,2848.6,2847.6,0.4911]
[1763999642707,0.74590441,2848.7,2847.6,0.4911]
[1763999642910,1.59346979,2848.9,2847.6,0.4911]
[1763999642911,0.74590441,2848.6,2847.6,0.4911]
[1763999643208,0.74705219,2848.5,2847.6,0.4911]
[1763999643441,0.23,2848.4,2847.6,0.4911]
[1763999643780,0.8022,2848.4,2847.5,0.001]
[1763999644093,0.74705514,2848.3,2847.5,0.001]
[1763999644291,0.74705514,2848.2,2847.5,0.001]
[1763999644491,0.74705514,2848.1,2847.5,0.001]
[1763999644682,1.63216979,2848.4,2847.5,0.001]
[1763999644884,0.7478019,2848.3,2847.5,0.001]
[1763999645189,0.9778019,2848.2,2847.5,0.001]
[1763999645395,0.7478019,2848.1,2847.5,0.4921]
[1763999645579,0.7478019,2848.0,2847.5,0.4921]
[1763999645781,0.7478019,2847.9,2847.5,0.4921]
[1763999646002,0.7486347,2847.8,2847.5,0.001]
[1763999646194,0.7486347,2847.7,2847.5,0.001]
[1763999646402,1.15996979,2848.0,2847.5,0.001]
[1763999646606,0.74933723,2847.9,2847.6,0.4924]
[1763999646815,0.23,2848.0,2847.6,0.4924]
[1763999647018,0.87571533,2847.9,2847.5,0.001]
[1763999647190,0.75028959,2847.8,2847.5,0.001]
[1763999647389,0.75028959,2847.7,2847.5,0.001]
[1763999647632,0.23,2848.0,2847.5,0.001]
[1763999647785,0.75026379,2847.9,2847.5,0.4921]
[1763999648117,0.98026379,2847.8,2847.5,0.4921]
[1763999648326,0.98026379,2847.7,2847.5,0.001]
[1763999648531,0.75026379,2847.6,2847.5,0.001]
[1763999649415,1.48596379,2847.6,2847.5,0.001]
[1763999649605,4.40694569,2847.6,2847.5,0.001]
[1763999649932,1.79342213,2847.6,2847.5,0.001]
[1763999650226,0.98026379,2847.6,2847.5,0.001]
[1763999650588,2.1631579,2847.6,2847.5,0.001]
[1763999650805,4.3262418,2847.6,2847.5,0.001]
[1763999651199,2.4434579,2847.6,2847.5,0.001]
[1763999651420,2.4434579,2847.6,2847.2,0.001]
[1763999651606,1.53700461,2847.3,2847.2,0.001]
[1763999651951,2.2872684,2847.3,2847.2,0.001]
[1763999652134,2.3116579,2847.3,2847.2,0.001]
[1763999652424,3.14628296,2847.3,2847.2,0.001]
[1763999652604,3.60178296,2847.3,2847.2,0.001]
[1763999652789,1.71606379,2847.3,2847.2,0.001]
[1763999653190,3.37180664,2847.3,2847.2,0.001]
[1763999653391,3.60180664,2847.3,2847.2,0.001]
[1763999653591,1.71606379,2847.3,2847.2,0.001]
[1763999653846,2.02210475,2847.3,2847.2,0.001]
[1763999654503,2.24936998,2847.3,2846.9,0.001]
[1763999654708,0.0046,2847.0,2846.9,0.001]
[1763999654905,2.64009256,2847.0,2846.9,0.001]
[1763999655126,3.11229256,2847.0,2846.9,0.001]
[1763999655328,3.50608123,2847.0,2846.9,0.001]
[1763999655886,2.44644657,2847.0,2846.9,0.001]
[1763999656095,1.7050579,2847.0,2846.9,0.001]
[1763999656271,2.63458276,2847.0,2846.9,0.001]
[1763999656457,0.97946379,2847.0,2846.9,0.001]
[1763999656885,2.23614125,2847.0,2846.9,0.001]
[1763999657081,2.23614125,2847.0,2846.9,0.4934]
[1763999657391,0.97946379,2847.0,2846.9,0.4934]
[1763999657598,0.74946379,2847.0,2846.9,0.4934]
[1763999657810,1.01506379,2847.0,2846.9,0.001]
[1763999658095,0.74946379,2847.0,2846.9,0.9845]
[1763999658463,1.92081359,2847.0,2846.9,0.9845]
[1763999658663,1.17133744,2847.0,2846.9,0.9845]
[1763999659274,0.229,2847.0,2846.9,0.9845]
[1763999659698,0.94233744,2847.2,2846.9,0.9476]
[1763999659865,1.17133744,2847.7,2847.1,0.6481]
[1763999660067,1.17133744,2847.7,2847.3,0.4618]
[1763999660376,1.17133744,2847.7,2847.6,0.4618]
[1763999660576,1.17133744,2847.7,2847.1,0.1863]
[1763999660771,1.17105653,2847.7,2847.1,0.1863]
[1763999660970,0.94205653,2847.6,2847.1,0.1863]
[1763999661482,1.17105653,2847.7,2847.1,0.6405]
[1763999662254,0.94205653,2847.7,2847.2,0.4542]
[1763999662458,0.94205653,2847.8,2847.6,0.4618]
[1763999662660,1.17105653,2847.7,2847.1,0.1863]
[1763999662862,0.94216238,2847.6,2847.1,0.1863]
[1763999663474,0.94216238,2847.6,2847.1,0.6405]
[1763999663993,0.94216238,2847.7,2847.2,0.4542]
[1763999664195,0.94216238,2847.7,2846.9,0.001]
[1763999664196,1.66556238,2847.6,2846.9,0.001]
[1763999664391,0.94216238,2847.3,2846.9,0.001]
[1763999664690,0.229,2847.2,2846.9,0.001]
[1763999665778,1.17116238,2847.2,2846.9,0.001]
[1763999666665,0.94216238,2847.2,2846.9,0.001]
[1763999666865,0.229,2847.1,2846.9,0.001]
[1763999667875,1.17116238,2847.1,2846.9,0.001]
[1763999668078,0.75584852,2847.0,2846.9,0.001]
[1763999668875,0.75584852,2847.0,2846.9,0.4628]
[1763999669082,0.98484852,2847.0,2846.9,0.917]
[1763999669399,0.75584852,2847.0,2846.9,0.917]
[1763999669777,0.002,2847.1,2846.9,0.917]
[1763999670111,0.002,2847.1,2847.0,0.916]
[1763999670495,0.002,2847.1,2847.0,1.321504]
[1763999670679,0.002,2847.4,2847.0,1.39951411]
[1763999670894,0.002,2847.4,2846.9,0.001]
[1763999670895,0.002,2847.4,2847.3,0.6481]
[1763999671371,0.002,2847.4,2847.3,1.1023]
[1763999675020,0.002,2847.4,2846.9,0.03612592]
[1763999675021,0.231,2847.4,2846.9,0.03612592]
[1763999675195,0.231,2847.4,2846.9,0.001]
[1763999675395,0.231,2847.4,2847.0,0.4542]
[1763999675793,0.002,2847.4,2847.1,0.1863]
[1763999675991,0.002,2847.4,2847.3,0.4618]
[1763999676391,0.002,2847.4,2847.3,0.916]
[1763999679023,0.002,2847.4,2847.1,0.1863]
[1763999679207,0.2343,2847.2,2846.9,0.001]
[1763999679610,0.4964,2847.4,2846.9,0.001]
[1763999679611,0.4786,2847.0,2846.9,0.001]
[1763999679812,0.4778,2847.0,2846.9,0.001]
[1763999680131,0.8277,2847.0,2846.9,0.001]
[1763999681203,0.7277,2847.0,2846.9,0.001]
[1763999681648,0.7068,2847.0,2846.9,0.001]
[1763999682223,0.9567,2847.0,2846.9,0.001]
[1763999682956,0.2519,2847.4,2846.9,0.001]
[1763999683101,0.228,2847.3,2846.9,0.001]
[1763999683303,1.2800514,2847.4,2846.9,0.001]
[1763999683543,0.228,2847.3,2846.9,0.001]
[1763999683849,0.228,2847.2,2846.9,0.001]
[1763999684731,0.7224,2847.2,2846.9,0.001]
[1763999684931,0.2327,2847.0,2846.9,0.001]
[1763999685232,0.002,2847.4,2846.9,0.001]
[1763999685436,0.228,2847.0,2846.9,0.001]
[1763999687530,0.33059262,2847.4,2846.9,0.001]
[1763999687726,0.6899,2847.3,2846.9,0.001]
[1763999688037,0.86765614,2847.3,2846.9,0.001]
[1763999688333,0.228,2847.2,2846.9,0.001]
[1763999688915,0.75897963,2847.4,2846.9,0.4948]
[1763999689102,0.228,2847.3,2846.9,0.001]
[1763999689840,0.228,2847.3,2847.0,0.4633]
[1763999690044,0.228,2847.3,2847.1,0.1961]
[1763999690244,0.228,2847.3,2846.9,0.001]
[1763999691239,0.718,2847.3,2846.9,0.001]
[1763999692329,0.237,2847.0,2846.9,0.001]
[1763999692531,1.07107319,2847.0,2846.9,0.001]
[1763999692729,4.91091028,2847.0,2846.9,0.001]
[1763999693041,3.96442017,2847.0,2846.9,0.001]
[1763999693244,2.86363633,2847.0,2846.9,0.001]
[1763999695236,2.76363633,2847.0,2846.9,0.001]
[1763999695970,2.53563633,2847.0,2846.9,0.001]
[1763999696175,2.76363633,2847.0,2846.9,0.001]
[1763999697546,2.86363633,2847.0,2846.9,0.001]
[1763999697861,3.94671008,2847.0,2846.9,0.001]
[1763999698371,3.71871008,2847.0,2846.9,0.001]
[1763999698576,3.94671008,2847.0,2846.9,0.001]
[1763999699640,3.94671008,2847.0,2844.1,0.1961]
[1763999699641,6.49613,2846.3,2844.1,0.1961]
[1763999699845,0.1,2845.7,2844.2,0.4633]
[1763999700044,0.228,2845.6,2844.2,0.4633]
[1763999700245,0.59,2845.6,2844.2,0.4633]
[1763999700491,0.1,2845.4,2844.2,0.4633]
[1763999700892,0.49,2845.9,2844.2,0.4633]